Cogmind - Beta 13 @@@ ROGUE MODE // 2024.05.18 @ 16:26:45 Player: Tyrockal Result: Destroyed by S-10 Pest with Light Assault Rifle Performance ------------- Evolutions (1) 500 Regions Visited (3) 600 Robots Destroyed (18) 90 Value Destroyed (529) 529 Prototype IDs (1) 20 Alien Tech Used (0) 0 Bonus (0) 0 TOTAL SCORE: 1739 Bonus ------- None Cogmind --------- Core Integrity 0/400 Matter 145/300 Energy 31/100 System Corruption 0% Temperature Cool (30) Movement Core (200) Ox3 Location -9/Materials Parts ------- > --- POWER (1) -------- (None) > --- PROPULSION (4) --- (None) > --- UTILITY (2) ------ Small Storage Unit Power Shielding > --- WEAPON (2) ------- Particle Cannon > --- INVENTORY (8) ---- Light Nuclear Core Light Nuclear Core Improved Heat Sink Signal Interpreter Power Shielding Authchip [R/Combat] Rocket Launcher Peak State ------------ > --- POWER ------------ Light Nuclear Core > --- PROPULSION ------- Aluminum Leg Aluminum Leg > --- UTILITY ---------- Small Storage Unit Experimental Sensor Array > --- WEAPON ----------- Heavy Assault Rifle Heavy Assault Rifle > --- INVENTORY -------- Light Nuclear Core Light Nuclear Core Light Treads Aluminum Leg Improved Heat Sink Power Shielding Authchip [R/Combat] Heavy Assault Rifle [Rating: 20] Favorites ----------- Power Light Nuclear Core Engine Improved Ion Engine Power Core Light Nuclear Core Propulsion Aluminum Leg Leg Aluminum Leg Utility Small Storage Unit Device Experimental Sensor Array Storage Small Storage Unit Protection Power Shielding Weapon Heavy Assault Rifle Energy Gun EM Pulse Gun Energy Cannon Particle Cannon Ballistic Gun Heavy Assault Rifle Launcher Rocket Launcher Special Weapon Welding Torch Build | -11 -10 -10 -9 ------- Run | Yrd Mat Min Mat Slots Evolved 2 | . . . 2 Power . | . . . . Propulsion 2 | . . . 2 Utility . | . . . . Weapon . | . . . . Parts Attached 35 | 6 7 9 13 Power 6 | 1 2 2 1 Engine 3 | 1 1 . 1 Core 3 | . 1 2 . Reactor . | . . . . Propulsion 9 | 2 1 3 3 Treads . | . . . . Leg 9 | 2 1 3 3 Wheel . | . . . . Hover . | . . . . Flight . | . . . . Utility 5 | 1 2 1 1 Device 1 | . . 1 . Storage 2 | 1 1 . . Processor . | . . . . Hackware . | . . . . Protection 2 | . 1 . 1 Artifact . | . . . . Weapon 15 | 2 2 3 8 Energy Gun 3 | 1 . . 2 Energy Cannon 1 | . . . 1 Ballistic Gun 8 | 1 2 2 3 Ballistic Cannon . | . . . . Launcher 2 | . . 1 1 Special Weapon 1 | . . . 1 Impact Weapon . | . . . . Slashing Weapon . | . . . . Piercing Weapon . | . . . . Special Melee Weapon . | . . . . Unidentified Prototypes 1 | . . 1 . Parts Lost 13 | . . 3 10 Power 2 | . . . 2 Propulsion 6 | . . 2 4 Utility 1 | . . . 1 Weapon 4 | . . 1 3 Highest Loss Streak 7 | . . 2 7 To Critical Strikes . | . . . . Average Slot Usage (%) 90 | . 97 99 48 Engine 1 | . 5 . . Core 10 | . 8 14 2 Leg 24 | . 28 27 8 Device 4 | . . 6 9 Storage 13 | . 14 14 11 Protection 7 | . 10 7 . Ballistic Gun 21 | . 26 22 11 Launcher 3 | . . 5 3 Naked Turns . | . . . . Heaviest Build 19 | 13 19 18 18 Greatest Support 20 | 20 20 20 20 Greatest Overweight (x) 3 | 1 . 1 3 Average Overweight (x) . | . . . 1 Largest Inventory Capacity 8 | 8 8 8 8 Average Capacity 7 | 6 8 8 8 Most Carried 8 | 4 8 8 7 Average Carried 6 | 2 6 7 6 Final Capacity 8 | 8 8 8 8 Final Carried 7 | 4 6 7 7 Class Distribution -------------------- 100% | Mutant Dominant Class ---------------- Mutant | -10/Materials Mutant | -10/Mines Mutant | -9/Materials Resources | -11 -10 -10 -9 ----------- Run | Yrd Mat Min Mat Matter Collected 679 | 108 104 274 193 Remotely . | . . . . Salvage Created 589 | . 104 214 271 Parts 38 | . 4 14 20 Haulers Intercepted . | . . . . Recyclers Shooed . | . . . . Parts Field Recycled . | . . . . Retrieved Matter . | . . . . Parts Self-Destructed . | . . . . Prevented . | . . . . Kills | -11 -10 -10 -9 ------- Run | Yrd Mat Min Mat Combat Hostiles Destroyed 15 | . 2 7 6 Guns 12 | . 2 7 3 Cannons 1 | . . . 1 AOE 2 | . . . 2 Classes Destroyed 6 | . 1 1 4 Builder 1 | . . . 1 Mechanic 1 | . . . 1 Watcher 1 | . . . 1 Swarmer 4 | . . 3 1 Grunt 9 | . 2 4 3 Sentry 2 | . . . 2 Best Kill Streak 3 | . 2 3 3 Combat Bots Only 3 | . 2 3 2 Max Kills in Single Turn 2 | . 1 2 2 Gunslinging . | . . . . Exploded 2 | . . . 2 Melee . | . . . . Uniques/NPCs Destroyed . | . . . . Combat | -11 -10 -10 -9 -------- Run | Yrd Mat Min Mat Hostile Shots Fired 186 | . 20 72 94 Missed 48 | . 7 20 21 Damage Taken 1890 | . 158 590 1142 Core 513 | . 22 89 402 Absorbed by Shields . | . . . . Redirected to Shielding 20 | . 5 15 . Core Remaining (%) 77 | 100 . 55 . Volleys Fired 68 | . 7 30 31 Largest 2 | . 2 2 2 Hottest 68 | . 46 46 68 Shots Fired 116 | . 14 54 48 Gun 106 | . 14 54 38 Cannon 4 | . . . 4 Launcher 5 | . . . 5 Special 1 | . . . 1 Kinetic 98 | . 14 54 30 Thermal 13 | . . . 13 Explosive 5 | . . . 5 Electromagnetic . | . . . . Robot Hit Streak 8 | . 5 7 8 Robot Miss Streak 4 | . 2 4 3 Penetration Max . | . . . . Secondary Targets 3 | . 1 1 1 Max Gunslinging Chain 1 | . 1 1 1 Shots Hit Robots 72 | . 9 30 33 Core Hits 32 | . 4 12 16 Critical Kills 1 | . . . 1 Critical Parts Destroyed 2 | . . 1 1 Critical Strikes 3 | . . 1 2 Destroy 3 | . . 1 2 Melee Attacks . | . . . . Impact . | . . . . Slashing . | . . . . Piercing . | . . . . Sneak Attacks . | . . . . Combat Hostiles . | . . . . Follow-up Attacks . | . . . . Damage Inflicted 1366 | . 152 507 707 Guns 1107 | . 152 507 448 Cannons 83 | . . . 83 Explosions 174 | . . . 174 Melee . | . . . . Ramming . | . . . . Kinetic 1030 | . 152 507 371 Thermal 162 | . . . 162 Explosive 174 | . . . 174 Electromagnetic . | . . . . Impact . | . . . . Slashing . | . . . . Piercing . | . . . . Highest Corruption . | . . . . Average Corruption . | . . . . Corruption Purged . | . . . . Corruption Blocked . | . . . . Overload Shots . | . . . . Overflow Damage . | . . . . Projectiles . | . . . . Explosions . | . . . . Melee . | . . . . Knockbacks . | . . . . Impact . | . . . . Kinetic . | . . . . Secondary . | . . . . Self-Inflicted Damage . | . . . . Shots . | . . . . Rammed . | . . . . Targets Rammed . | . . . . Kicked . | . . . . Crushed . | . . . . Highest Temperature 58 | . 21 58 30 Average Temperature 20 | . 11 24 13 Received Heat Transfer 546 | . 87 261 198 Siege Activations . | . . . . Robots Corrupted . | . . . . Combat Hostiles . | . . . . Parts Fried . | . . . . Impact Corruptions . | . . . . Robots Melted . | . . . . Combat Hostiles . | . . . . Parts Melted 1 | . . . 1 Heat Transferred 348 | . . . 348 Parts Sabotaged . | . . . . Parts Stolen . | . . . . Parts Stripped . | . . . . Power Chain Reactions . | . . . . Alert | -11 -10 -10 -9 ------- Run | Yrd Mat Min Mat Peak Influence 165 | . 70 165 150 Initial 1 | . . . 1 Average 34 | . 34 23 79 Maximum Alert Level . | . . . . Low Security (%) 100 | 100 100 100 100 Level 1 . | . . . . Level 2 . | . . . . Level 3 . | . . . . Level 4 . | . . . . Level 5 . | . . . . High Security . | . . . . Max Security . | . . . . Squads Dispatched 4 | . 1 . 3 Investigation 1 | . 1 . . Extermination . | . . . . Reinforcement 3 | . . . 3 Assault . | . . . . Garrison . | . . . . Intercept . | . . . . Searches Triggered . | . . . . Construction Impeded . | . . . . Haulers Reinforced . | . . . . Active Scanning Responses . | . . . . Cargo Convoy Interrupts . | . . . . Stealth | -11 -10 -10 -9 --------- Run | Yrd Mat Min Mat Distress Signals 2 | . . . 2 Communications Jammed . | . . . . Distress Signals . | . . . . Times Spotted 30 | . 5 9 16 Peak Tracking Total 8 | . 3 3 8 Tactical Retreats . | . . . . Traps | -11 -10 -10 -9 ------- Run | Yrd Mat Min Mat Traps Triggered 1 | . 1 . . Indirectly . | . . . . Trap Hack Attempts . | . . . . Triggered . | . . . . Disarmed . | . . . . Reprogrammed . | . . . . Reused . | . . . . Traps Extracted . | . . . . Installed . | . . . . Triggered . | . . . . Machines | -11 -10 -10 -9 ---------- Run | Yrd Mat Min Mat Machines Disabled 2 | . 1 1 . Max in Single Turn 1 | . 1 1 . Machines Repaired . | . . . . Machines Dismantled . | . . . . Machines Sabotaged . | . . . . Overloaded Fab Kills . | . . . . Hacking | -11 -10 -10 -9 --------- Run | Yrd Mat Min Mat Machines Accessed 2 | . 2 . . Terminals 2 | . 2 . . Fabricators . | . . . . Repair Stations . | . . . . Recycling Units . | . . . . Scanalyzers . | . . . . Garrison Access . | . . . . Total Hacks 9 | . 9 . . Successful 4 | . 4 . . Failed 5 | . 5 . . Catastrophic . | . . . . Database Lockouts . | . . . . Manual . | . . . . Terminals 9 | . 9 . . Fabricators . | . . . . Repair Stations . | . . . . Recycling Units . | . . . . Scanalyzers . | . . . . Garrison Access . | . . . . Terminal Hacks 4 | . 4 . . Record 1 | . 1 . . Hauler Manifests 1 | . 1 . . Registered Components 1 | . 1 . . Zone Layout 1 | . 1 . . Fabricator Hacks . | . . . . Repair Station Hacks . | . . . . Recycling Unit Hacks . | . . . . Scanalyzer . | . . . . Garrison Access Hacks . | . . . . Unauthorized Hacks . | . . . . Terminals . | . . . . Fabricators . | . . . . Repair Stations . | . . . . Recycling Units . | . . . . Scanalyzers . | . . . . Garrison Access . | . . . . Data Cores Recovered . | . . . . Used . | . . . . Hacking Detections 1 | . 1 . . Full Trace Events . | . . . . Feedback Events . | . . . . Feedback Blocked . | . . . . Robot Schematics Acquired . | . . . . Robots Built . | . . . . Authchips . | . . . . Time . | . . . . Total Robot Build Rating . | . . . . Part Schematics Acquired . | . . . . Parts Built . | . . . . Authchips . | . . . . Time . | . . . . Total Part Build Rating . | . . . . Parts Repaired . | . . . . Time . | . . . . Parts Recycled . | . . . . Recycled Matter . | . . . . Retrieved Matter . | . . . . Retrieved Components . | . . . . Parts Scanalyzed . | . . . . Part Schematics Acquired . | . . . . Parts Damaged . | . . . . Bothacking | -11 -10 -10 -9 ------------ Run | Yrd Mat Min Mat Used RIF Installer . | . . . . Robots Hacked . | . . . . Non-combat . | . . . . Combat . | . . . . Robot Hacks Applied . | . . . . Relay Couplers Released . | . . . . Fabnet Peak Effective % . | . . . . Robots Rewired . | . . . . Allies Hacked . | . . . . Hacks Repelled . | . . . . Allies | -11 -10 -10 -9 -------- Run | Yrd Mat Min Mat Total Allies . | . . . . Largest Group . | . . . . Highest-Rated Group . | . . . . Highest-Rated Ally . | . . . . Total Orders . | . . . . Ally Attacks . | . . . . Total Damage . | . . . . Kills . | . . . . Allies Corrupted . | . . . . Allies Melted . | . . . . Intel | -11 -10 -10 -9 ------- Run | Yrd Mat Min Mat Robot Analysis Total . | . . . . Derelict Logs Recovered . | . . . . Drone Launches . | . . . . Drone Recoveries . | . . . . Exploration | -11 -10 -10 -9 ------------- Run | Yrd Mat Min Mat Turns Passed 1523 | 68 452 778 225 Spaces Moved 971 | 49 330 504 88 Core 48 | 5 . . 43 Treads . | . . . . Legs 923 | 44 330 504 45 Wheels . | . . . . Hover . | . . . . Flight . | . . . . Fastest Speed 50 | 50 120 120 100 Average Speed 121 | 113 120 120 139 Slowest Speed 200 | 120 120 190 200 Overloaded Moves . | . . . . Propulsion Burnouts . | . . . . Robots Hopped . | . . . . Cave-ins Triggered 1 | . . . 1 Exploration Rate (%) 34 | 3 41 83 12 Regions Visited 3 Branch Regions 1 Pre-discovered Areas 1 | . . 1 . Known Exits Taken . | . . . . Unknown Exits Taken 3 | 1 1 1 . Scrap Searched 2 | . . 2 . Spaces Dug . | . . . . Terrain Destroyed 38 | . . . 38 Melee . | . . . . Projectile . | . . . . AOE 38 | . . . 38 Terrain Rammed . | . . . . Walls Destroyed . | . . . . Machines Disabled . | . . . . Actions | -11 -10 -10 -9 --------- Run | Yrd Mat Min Mat Total 1189 | 58 372 622 137 Wait 88 | . 19 65 4 Move 968 | 48 329 503 88 Hop . | . . . . Pick Up 15 | 4 3 7 1 Fast Attach 18 | 6 4 . 8 Attach 3 | . . 2 1 Detach . | . . . . Swap 14 | . 3 7 4 Drop 15 | . 7 8 . Fire 68 | . 7 30 31 Melee . | . . . . Ram . | . . . . Kick . | . . . . Crush . | . . . . Escape Stasis . | . . . . Rewire . | . . . . Trap . | . . . . Miscellaneous . | . . . . Route ------- -11/Scrapyard -10/Materials -10/Mines -9/Materials History --------- Turn | Location | Event 2 | -11/Scrapyard | Discovered new exit (range 16) 69 | -11/Scrapyard | Entered Materials 305 | -10/Materials | Build established: Mutant 347 | -10/Materials | Discovered new exit (range 19) 521 | -10/Materials | Entered Mines 522 | -10/Mines | Learned location of Storage (-7) 940 | -10/Mines | Found a damaged Exp. Sensor Array with a note attached 942 | -10/Mines | Found Prototype Device 943 | -10/Mines | Identified Exp. Sensor Array 977 | -10/Mines | Received a Rocket Launcher from a helpful Derelict 1041 | -10/Mines | Discovered new exit (range 6) 1299 | -10/Mines | Entered Materials 1299 | -9/Materials | Evolved 2 slots: Propulsion x2 1397 | -9/Materials | Lost 3 parts (1p2n) 1477 | -9/Materials | Core integrity fell below 50% 1489 | -9/Materials | Crushed by falling debris 1500 | -9/Materials | Core integrity fell below 20% 1524 | -9/Materials | Destroyed by S-10 Pest with Light Assault Rifle Last Messages --------------- reinforcements to Terminal M001. 01498_ U-05 Engineer lays Concrete. 01499_ Sml. Laser severed. 01500_ U-05 Engineer builds a Wall. 01501_ U-05 Engineer lays Concrete. 01504_ T-07 Excavator is excavating. 01505_ U-05 Engineer lays Concrete. 01509_ Acquired Particle Cannon. 01510_ U-05 Engineer lays Concrete. 01514_ Acquired Power Shielding. 01514_ U-05 Engineer lays Concrete. 01515_ L-31 Rogue destroyed. 01515_ U-05 Engineer lays Concrete. 01515_ Flight Unit melted. 01515_ S-10 Pest destroyed. 01517_ U-05 Engineer lays Concrete. 01517_ Acquired 11 matter. 01518_ U-05 Engineer lays Concrete. 01521_ M-13 Machinist destroyed. 01521_ U-05 Engineer lays Concrete. Map ----- +----------------------------------------------------+ | | | ?????????????????????????????????????????????????? | | ?????????????????????????????????????????????????? | | ?????????????????????????????????????????????????? | | ##############???????????????????????????????????? | | #???????????????????????????????????? | | #???????????????????????????????????? | | #???????????????????????????????????? | | ##+####### #???????????????????????????????????? | | #???# #???????????????????????????????????? | | #???# #???????????????????????????????????? | | #?### +???????????????????????????????????? | | ### # #???????????????????????????????????? | | #???????????????????????????????????? | | #???????????????????????????????????? | | ####+#####????????????##??????????????????? | | !% #?##########? ##?????????????????? | | #?# # ??????????????????? | | # ! #?# u # ???????????????????? | | *#?# / ????????????????????? | | ## """ """ #?# #?????????????????????? | | ####### """ """ #?# u #?????????????????????? | | ??????# """ """ #?# s #????? ?????????????? | | ??????# #?# u *]!#???? ??????????????? | | ????###########+#?# usu*] #?? / ????????????????? | | ???? ????### ### s%*@!#? #?????????????????? | | ??????""" ??# ##/####### #######???????????? | | ?????""""" # = ??????????? | | ?????""""" +[ ! ??????????? | | ?????""""" # !* [ ??????????? | | ??????""" ??# # ## ###########????????????? | | ???? ????### #### #??????????????????????? | | ??? ????????#+#??#### #??????????????????????? | | ??##??????????????????# #??????????????????????? | | ??????????????????????+ + ?????????????????????? | | ??????????????????????# # ????????????????????? | | ??????????????????????# # ???????????????????? | | ??????????????????????# #?###??????????????????? | | ??????????????????????? +??????????????????????? | | ??????????????????????? #??????????????????????? | | ??????????????????????? #??????????????????????? | | ??????????????????????? #??????????????????????? | | ??????????????????????? #??????????????????????? | | ??????????????????????? #??????????????????????? | | ??????????????????????? +??????????????????????? | | ?????????????????????????????????????????????????? | | ?????????????????????????????????????????????????? | | ?????????????????????????????????????????????????? | | ?????????????????????????????????????????????????? | | ?????????????????????????????????????????????????? | +----------------------------------------------------+ Best States ------------- Heat Dissipation 28 Energy Generation 14 Energy Capacity 265 Matter Stores 192 Matter Capacity 350 Sight Range 16 Robot Scan Range 20 Terrain Scan Density 10 Power Shielding 33 Evasion (%) 55 Authchip Count 1 Item Schematics ----------------- None Robot Schematics ------------------ None Fabricated ------------ Nothing Alien Tech Used ----------------- None Achievements -------------- None Challenges ------------ None Game ------ Seed DamperHellfireInterpreter Manual? 0 Play Time 00:14:26 Cumulative 8.0 hours Start 2024.05.18 @ 16:14:40 End 2024.05.18 @ 16:26:45 Sessions 1 Manual Loads 0 Difficulty Rogue Special Mode None Game No. 12 Rogue 12 Adventurer 0 Explorer 0 Win Type - Total 0 Types 0/0/0/0/0/0/0/0/0 Lore% 13 Gallery% 19 Achievement% 14 Wizard Run 0 Options --------- Layout 1 ASCII 0 Keyboard 0 Movement Mouse Keybinds 0 Fullscreen 1 Font 24/Smallcaps Map View 50x35 Zoom Use 0% Tactical HUD 1 Map Filters NONE Filters NONE Steam 1 RUN: e060d45b-4df0-4c40-ab3f-b68de16993b7